fUST/lending_fUST_20240110
["ID","MTS","AMOUNT","RATE_DAILY","PERIOD"]
[311071885,1704893450903,-680.81316922,0.000318,3]
[311071886,1704893450913,-193409.76881489,0.000318,2]
[311071887,1704893450958,-63183.79125678,0.000318,2]
[311071888,1704893450969,-17088.99452829,0.000318,2]
[311071889,1704893450978,-474.648149,0.000318,2]
[311071890,1704893450989,-474.648149,0.000318,2]
[311071891,1704893450998,-493.028705,0.000318,2]
[311071892,1704893451008,-493.028705,0.000318,2]
[311071893,1704893451018,-202.5,0.000318,2]
[311071894,1704893451028,-202.5,0.000318,2]
[311071895,1704893451038,-151.0,0.00031871,2]
[311071896,1704893451048,-4790.2,0.00031999,2]
[311071897,1704893451058,-4790.2,0.00031999,2]
[311071898,1704893451071,-3342.64274471,0.00032,10]
[311071899,1704893451082,-223.15034432,0.00032,4]
[311071900,1704893451092,-1000.0,0.00032,2]
[311071901,1704893451102,-2134.03260025,0.00032,4]
[311071902,1704893451112,-41678.07202376,0.00032,15]
[311071903,1704893451122,-620.17166699,0.00032009,2]
[311071904,1704893451132,-504.18,0.00032054,2]
[311071905,1704893451142,-894.07,0.00032054,2]
[311071906,1704893451152,-675.31,0.00032054,2]
[311071907,1704893451161,-500.0,0.00032054,2]
[311071908,1704893451171,-255.92105593,0.00032054,2]
[311071909,1704893451181,-80.76177905,0.00032054,2]
[311071910,1704893451404,-500.0,0.00027397,2]
[311071911,1704893451414,-500.0,0.00027671,2]
[311071912,1704893451423,-500.0,0.00027671,2]
[311071913,1704893451433,-500.0,0.00027945,2]
[311071914,1704893451442,-500.0,0.00027945,2]
[311071915,1704893451451,-4988.65,0.00028209,3]
[311071916,1704893451461,-500.0,0.00028219,2]
[311071917,1704893451470,-500.0,0.00028219,2]
[311071918,1704893451480,-500.0,0.00028493,2]
[311071919,1704893451490,-500.0,0.00028767,2]
[311071920,1704893451499,-630.03822095,0.00032054,2]
[311071921,1704893451509,-1236.01,0.00032054,2]
[311071922,1704893451518,-500.0,0.00032054,2]
[311071923,1704893451527,-518.9,0.00032054,2]
[311071924,1704893451537,-671.08,0.00032054,2]
[311071925,1704893451547,-566.85678419,0.00032054,2]
[311071926,1704893451557,-500.0,0.00032054,2]
[311071927,1704893451569,-897.99,0.00032054,2]
[311071928,1704893451579,-975.28,0.00032054,2]
[311071929,1704893451588,-517.6,0.00032054,2]
[311071930,1704893451597,-500.0,0.00032054,2]
[311071931,1704893451606,-1217.42,0.00032054,2]
[311071932,1704893451615,-564.5,0.00032054,2]
[311071933,1704893451625,-4654.66,0.00032054,2]
[311071934,1704893451636,-6008.2,0.00032054,2]
[311071935,1704893451645,-1436.81,0.00032054,2]
[311071936,1704893451654,-1092.69,0.00032054,2]
[311071937,1704893451664,-2756.43,0.00032054,2]
[311071938,1704893451673,-532.77,0.00032054,2]
[311071939,1704893451682,-4344.41,0.00032054,2]
[311071940,1704893451691,-36439.63,0.00032054,2]
[311071941,1704893451700,-961.28006486,0.00032054,2]
[311071942,1704893451713,-133.94993514,0.00032054,2]
[311071943,1704893451722,-2067.4,0.00032054,2]
[311071944,1704893451732,-447.90952176,0.00032054,2]
[311071945,1704893451741,-164.20255396,0.00032054,2]
[311071946,1704893451750,-9174.44,0.00032054,2]
[311071947,1704893451760,-1518.78,0.00032054,2]
[311071948,1704893451769,-1573.03,0.00032054,2]
[311071949,1704893451780,-2773.62,0.00032054,2]
[311071950,1704893451789,-1222.69,0.00032054,2]
[311071951,1704893451799,-1991.13,0.00032054,2]
[311071952,1704893451809,-694.98,0.00032054,2]
[311071953,1704893451821,-710.57,0.00032054,2]
[311071954,1704893451830,-3408.89,0.00032054,2]
[311071955,1704893451839,-1557.67,0.00032054,2]
[311071956,1704893451848,-1282.44,0.00032054,2]
[311071957,1704893451858,-1001.27,0.00032054,2]
[311071958,1704893451867,-673.46,0.00032054,2]
[311071959,1704893451877,-1209.64,0.00032054,2]
[311071960,1704893451886,-1029.19,0.00032054,2]
[311071961,1704893451895,-620.00002157,0.00032089,2]
[311071962,1704893451904,-307.1403654,0.00032095,2]
[311071963,1704893451914,-153.0,0.00032258,2]
[311071964,1704893451923,-153.0,0.00032258,2]
[311071965,1704893451932,-153.0,0.00032258,2]
[311071966,1704893451942,-153.0,0.00032258,2]
[311071967,1704893451952,-153.0,0.00032258,2]
[311071968,1704893451961,-474.648149,0.00032328,2]
[311071969,1704893451971,-474.64815295,0.00032328,2]
[311071970,1704893451980,-202.5,0.00032328,2]
[311071971,1704893451990,-202.5,0.00032328,2]
[311071972,1704893452000,-504.18,0.00032328,2]
[311071973,1704893452009,-894.07,0.00032328,2]
[311071974,1704893452019,-675.31,0.00032328,2]
[311071975,1704893452028,-500.0,0.00032328,2]
[311071976,1704893452037,-710.8,0.00032328,2]
[311071977,1704893452048,-1236.01,0.00032328,2]
[311071978,1704893452058,-507.63157026,0.00032328,2]
[311071979,1704893452069,-518.9,0.00032328,2]
[311071980,1704893452079,-597.02839876,0.00032328,2]
[311071981,1704893452091,-74.05160124,0.00032328,2]
[311071982,1704893452100,-500.0,0.00032328,2]
[311071983,1704893452110,-897.99,0.00032328,2]
[311071984,1704893452119,-975.28,0.00032328,2]
[311071985,1704893452128,-517.6,0.00032328,2]
[311071986,1704893452137,-244.45031327,0.00032328,2]
[311071987,1704893452146,-1217.42,0.00032328,2]
[311071988,1704893452155,-564.5,0.00032328,2]
[311071989,1704893452165,-2328.3401695,0.00032328,2]
[311071990,1704893452176,-1134.62738644,0.00032328,2]
[311071991,1704893452219,-500.0,0.00027397,2]
[311071992,1704893452228,-500.27922658,0.00027671,2]
[311071993,1704893452237,-500.0,0.00029041,2]
[311071994,1704893452247,-500.0,0.00029315,2]
[311071995,1704893452256,-500.0,0.00029589,2]
[311071996,1704893452266,-500.0,0.00029863,2]
[311071997,1704893452275,-500.0,0.00030136,2]
[311071998,1704893452285,-242.67608623,0.00032328,2]
[311071999,1704893452296,-949.01635783,0.00032328,2]
[311072000,1704893452305,-759.74364217,0.00032328,2]
[311072001,1704893452319,-5248.45635783,0.00032328,2]
[311072002,1704893452331,-1436.81,0.00032328,2]
[311072003,1704893452341,-1092.69,0.00032328,2]
[311072004,1704893452350,-2756.43,0.00032328,2]
[311072005,1704893452360,-532.77,0.00032328,2]
[311072006,1704893452370,-4344.41,0.00032328,2]
[311072007,1704893452379,-8294.2163686,0.00032328,2]
[311072008,1704893452437,-500.0,0.00027397,2]
[311072009,1704893452446,-300.0,0.00027397,2]
[311072010,1704893452455,-500.0,0.00027671,2]
[311072011,1704893452464,-4711.08145103,0.00029039,2]
[311072012,1704893452474,-2085.32490304,0.0002904,2]
[311072013,1704893452483,-266.19065175,0.0002904,2]
[311072014,1704893452493,-255.36,0.0003041,2]
[311072015,1704893452503,-153.0,0.0003171,2]
[311072016,1704893452511,-28145.4136314,0.00032328,2]
[311072017,1704893452521,-1095.23,0.00032328,2]
[311072018,1704893452530,-2067.4,0.00032328,2]
[311072019,1704893452539,-9174.44,0.00032328,2]
[311072020,1704893452549,-1518.78,0.00032328,2]
[311072021,1704893452558,-2773.62,0.00032328,2]
[311072022,1704893452569,-1573.03,0.00032328,2]
[311072023,1704893452579,-1222.69,0.00032328,2]
[311072024,1704893452588,-1991.13,0.00032328,2]
[311072025,1704893452598,-694.98,0.00032328,2]
[311072026,1704893452607,-710.57,0.00032328,2]
[311072027,1704893452617,-3408.89,0.00032328,2]
[311072028,1704893452626,-1557.67,0.00032328,2]
[311072029,1704893452635,-1282.44,0.00032328,2]
[311072030,1704893452644,-1001.27,0.00032328,2]
[311072031,1704893452654,-673.46,0.00032328,2]
[311072032,1704893452663,-1209.64,0.00032328,2]
[311072033,1704893452673,-1029.19,0.00032328,2]
[311072034,1704893452682,-1158.27332054,0.000325,5]
[311072035,1704893452692,-493.028705,0.000325,2]
[311072036,1704893452701,-493.028705,0.000325,2]
[311072037,1704893452710,-153.0,0.00032525,2]
[311072038,1704893452719,-504.18,0.00032602,2]
[311072039,1704893452729,-894.07,0.00032602,2]
[311072040,1704893452739,-675.31,0.00032602,2]
[311072041,1704893452748,-366.19148961,0.00032602,2]
[311072042,1704893452757,-710.8,0.00032602,2]
[311072043,1704893452766,-1236.01,0.00032602,2]
[311072044,1704893452775,-518.9,0.00032602,2]
[311072045,1704893452785,-671.08,0.00032602,2]
[311072046,1704893452795,-500.0,0.00032602,2]
[311072047,1704893452804,-897.99,0.00032602,2]
[311072048,1704893452815,-975.28,0.00032602,2]
[311072049,1704893452827,-517.6,0.00032602,2]
[311072050,1704893452837,-1217.42,0.00032602,2]
[311072051,1704893452847,-564.5,0.00032602,2]
[311072052,1704893452858,-4654.66,0.00032602,2]
[311072053,1704893452867,-6008.2,0.00032602,2]
[311072054,1704893452877,-1436.81,0.00032602,2]
[311072055,1704893452887,-1092.69,0.00032602,2]
[311072056,1704893452897,-2756.43,0.00032602,2]
[311072057,1704893452906,-532.77,0.00032602,2]
[311072058,1704893452915,-4344.41,0.00032602,2]
[311072059,1704893452925,-36439.63,0.00032602,2]
[311072060,1704893452934,-1095.23,0.00032602,2]
[311072061,1704893452943,-2067.4,0.00032602,2]
[311072062,1704893452953,-9174.44,0.00032602,2]
[311072063,1704893452962,-1518.78,0.00032602,2]
[311072064,1704893452972,-1573.03,0.00032602,2]
[311072065,1704893452981,-1304.84745574,0.00032602,2]
[311072066,1704893452993,-1319.1700002,0.00032602,2]
[311072067,1704893453059,-149.60254406,0.00032602,2]
[311072068,1704893453069,-1222.69,0.00032602,2]
[311072069,1704893453079,-1991.13,0.00032602,2]
[311072070,1704893453089,-694.98,0.00032602,2]
[311072071,1704893453098,-710.57,0.00032602,2]
[311072072,1704893453107,-3408.89,0.00032602,2]
[311072073,1704893453117,-1557.67,0.00032602,2]
[311072074,1704893453126,-1282.44,0.00032602,2]
[311072075,1704893453134,-1001.27,0.00032602,2]
[311072076,1704893453143,-673.46,0.00032602,2]
[311072077,1704893453153,-1209.64,0.00032602,2]
[311072078,1704893453162,-1029.19,0.00032602,2]
[311072079,1704893453171,-150.8642222,0.00032606,7]
[311072080,1704893453180,-1207.27944374,0.00032797,21]
[311072081,1704893453192,-114.88728931,0.00032797,21]
[311072082,1704893453201,-467.67442126,0.000328,2]
[311072083,1704893453210,-503.36388571,0.00032876,2]
[311072084,1704893453218,-504.18,0.00032876,2]
[311072085,1704893453227,-894.07,0.00032876,2]
[311072086,1704893453236,-675.31,0.00032876,2]
[311072087,1704893453245,-710.8,0.00032876,2]
[311072088,1704893453253,-1236.01,0.00032876,2]
[311072089,1704893453262,-533.62330357,0.00032876,2]
[311072090,1704893453271,-518.9,0.00032876,2]
[311072091,1704893453280,-671.08,0.00032876,2]
[311072092,1704893453290,-500.0,0.00032876,2]
[311072093,1704893453299,-897.99,0.00032876,2]
[311072094,1704893453308,-250.0,0.00032876,10]
[311072095,1704893453319,-975.28,0.00032876,2]
[311072096,1704893453328,-517.6,0.00032876,2]
[311072097,1704893453337,-1217.42,0.00032876,2]
[311072098,1704893453346,-564.5,0.00032876,2]
[311072099,1704893453355,-4654.66,0.00032876,2]
[311072100,1704893453365,-6008.2,0.00032876,2]
[311072101,1704893453373,-1436.81,0.00032876,2]
[311072102,1704893453382,-1092.69,0.00032876,2]
[311072103,1704893453391,-2756.43,0.00032876,2]
[311072104,1704893453400,-532.77,0.00032876,2]
[311072105,1704893453421,-4344.41,0.00032876,2]
[311072106,1704893453431,-36439.63,0.00032876,2]
[311072107,1704893453440,-1095.23,0.00032876,2]
[311072108,1704893453449,-2067.4,0.00032876,2]
[311072109,1704893453459,-9174.44,0.00032876,2]
[311072110,1704893453468,-1518.78,0.00032876,2]
[311072111,1704893453478,-1573.03,0.00032876,2]
[311072112,1704893453488,-2773.62,0.00032876,2]
[311072113,1704893453498,-1222.69,0.00032876,2]
[311072114,1704893453508,-1991.13,0.00032876,2]
[311072115,1704893453518,-694.98,0.00032876,2]
[311072116,1704893453528,-710.57,0.00032876,2]
[311072117,1704893453538,-3408.89,0.00032876,2]
[311072118,1704893453547,-1557.67,0.00032876,2]
[311072119,1704893453696,-1282.44,0.00032876,2]
[311072120,1704893453723,-1001.27,0.00032876,2]
[311072121,1704893453733,-673.46,0.00032876,2]
[311072122,1704893453743,-1209.64,0.00032876,2]
[311072123,1704893453753,-1029.19,0.00032876,2]
[311072124,1704893453762,-558.7513216,0.00032876,7]
[311072125,1704893453772,-256.68594,0.00032876,7]
[311072126,1704893453781,-500.0,0.00032876,7]
[311072127,1704893453790,-302.38068407,0.00032876,7]
[311072128,1704893453800,-500.0,0.00032876,7]
[311072129,1704893453809,-500.0,0.00032876,7]
[311072130,1704893453819,-500.0,0.00032876,7]
[311072131,1704893453829,-500.0,0.00032876,7]
[311072132,1704893453838,-500.0,0.00032876,7]
[311072133,1704893453848,-188.06262426,0.00032876,7]
[311072134,1704893453858,-500.0,0.00032876,7]
[311072135,1704893453867,-500.0,0.00032876,7]
[311072136,1704893453878,-500.0,0.00032876,7]
[311072137,1704893453888,-500.0,0.00032876,7]
[311072138,1704893453898,-500.0,0.00032876,7]
[311072139,1704893453908,-500.0,0.00032876,7]
[311072140,1704893453918,-500.0,0.00032876,7]
[311072141,1704893453927,-150.3355383,0.00032876,7]
[311072142,1704893453937,-155.0,0.00032877,2]
[311072143,1704893453947,-151.0,0.00032941,2]
[311072144,1704893453957,-13976.88785893,0.00033,2]
[311072145,1704893453967,-688.16799535,0.00033,3]
[311072146,1704893453977,-899.86988398,0.00033,2]
[311072147,1704893453986,-13838.0,0.00033,2]
[311072148,1704893453995,-244.39643349,0.00033,7]
[311072149,1704893454004,-5017.63886717,0.00033,30]
[311072150,1704893454014,-1000.0,0.00033,33]
[311072151,1704893454023,-427.0,0.00033,2]
[311072152,1704893454033,-157.16319023,0.00033076,7]
[311072153,1704893454042,-157.16319023,0.00033123,7]
[311072154,1704893454051,-157.16319023,0.00033132,7]
[311072155,1704893454061,-152.35064136,0.00033146,7]
[311072156,1704893454074,-649.46848965,0.0003315,4]
[311072157,1704893454084,-504.18,0.0003315,2]
[311072158,1704893454094,-894.07,0.0003315,2]
[311072159,1704893454104,-675.31,0.0003315,2]
[311072160,1704893454114,-710.8,0.0003315,2]
[311072161,1704893454123,-1236.01,0.0003315,2]
[311072162,1704893454134,-518.9,0.0003315,2]
[311072163,1704893454144,-671.08,0.0003315,2]
[311072164,1704893454154,-500.0,0.0003315,2]
[311072165,1704893454163,-897.99,0.0003315,2]
[311072166,1704893454172,-975.28,0.0003315,2]
[311072167,1704893454182,-517.6,0.0003315,2]
[311072168,1704893454191,-1217.42,0.0003315,2]
[311072169,1704893454200,-564.5,0.0003315,2]
[311072170,1704893454210,-4654.66,0.0003315,2]
[311072171,1704893454219,-6008.2,0.0003315,2]
[311072172,1704893454228,-1436.81,0.0003315,2]
[311072173,1704893454237,-1092.69,0.0003315,2]
[311072174,1704893454246,-2756.43,0.0003315,2]
[311072175,1704893454255,-532.77,0.0003315,2]
[311072176,1704893454265,-4344.41,0.0003315,2]
[311072177,1704893454273,-36439.63,0.0003315,2]
[311072178,1704893454283,-1095.23,0.0003315,2]
[311072179,1704893454292,-2067.4,0.0003315,2]
[311072180,1704893454300,-9174.44,0.0003315,2]
[311072181,1704893454311,-1518.78,0.0003315,2]
[311072182,1704893454323,-1573.03,0.0003315,2]
[311072183,1704893454335,-2773.62,0.0003315,2]
[311072184,1704893454345,-1222.69,0.0003315,2]
[311072185,1704893454354,-1991.13,0.0003315,2]
[311072186,1704893454365,-694.98,0.0003315,2]
[311072187,1704893454374,-710.57,0.0003315,2]
[311072188,1704893454384,-3408.89,0.0003315,2]
[311072189,1704893454393,-1557.67,0.0003315,2]
[311072190,1704893454402,-1282.44,0.0003315,2]
[311072191,1704893454412,-1001.27,0.0003315,2]
[311072192,1704893454422,-673.46,0.0003315,2]
[311072193,1704893454432,-1209.64,0.0003315,2]
[311072194,1704893454441,-1029.19,0.0003315,2]
[311072195,1704893454450,-493.028705,0.0003315,2]
[311072196,1704893454459,-493.028705,0.0003315,2]
[311072197,1704893454469,-202.5,0.0003315,2]
[311072198,1704893454478,-202.5,0.0003315,2]
[311072199,1704893454490,-152.35064136,0.00033158,7]
[311072200,1704893454500,-152.35064136,0.00033168,7]
[311072201,1704893454509,-1000.0,0.00033223,10]
[311072202,1704893454518,-1000.0,0.00033223,10]
[311072203,1704893454527,-1000.0,0.00033223,10]
[311072204,1704893454536,-153.0,0.00033251,2]
[311072205,1704893454546,-150.8642222,0.00033272,4]
[311072206,1704893454555,-160.0,0.0003331,3]
[311072207,1704893454566,-5000.0,0.00033336,7]
[311072208,1704893454575,-5000.0,0.00033336,7]
[311072209,1704893454584,-5000.0,0.00033336,7]
[311072210,1704893454593,-152.35064136,0.00033409,7]
[311072211,1704893454603,-504.18,0.00033424,2]
[311072212,1704893454612,-894.07,0.00033424,2]
[311072213,1704893454621,-675.31,0.00033424,2]
[311072214,1704893454631,-710.8,0.00033424,2]
[311072215,1704893454640,-1236.01,0.00033424,2]
[311072216,1704893454650,-518.9,0.00033424,2]
[311072217,1704893454659,-671.08,0.00033424,2]
[311072218,1704893454668,-342.7753344,0.00033424,2]
[311072219,1704893454677,-897.99,0.00033424,2]
[311072220,1704893454686,-975.28,0.00033424,2]
[311072221,1704893454695,-517.6,0.00033424,2]
[311072222,1704893454704,-1217.42,0.00033424,2]
[311072223,1704893454713,-564.5,0.00033424,2]
[311072224,1704893454723,-1428.59117062,0.00033424,2]
[311072225,1704893454736,-3226.06882938,0.00033424,2]
[311072226,1704893454746,-6008.2,0.00033424,2]
[311072227,1704893454755,-1436.81,0.00033424,2]
[311072228,1704893454765,-1092.69,0.00033424,2]
[311072229,1704893454774,-2756.43,0.00033424,2]
[311072230,1704893454783,-532.77,0.00033424,2]
[311072231,1704893454793,-4344.41,0.00033424,2]
[311072232,1704893454802,-28223.08304493,0.00033424,2]
[311072285,1704894116475,200.0,0.00027,7]
[311072286,1704894136457,200.0,0.00024198,7]
[311072287,1704894137242,280.0,0.00026618,15]
[311072365,1704894403046,384.1650743,0.00026618,20]
[311072373,1704894435976,200.0,0.00024134,7]
[311072374,1704894436762,280.0,0.00026547,15]
[311072376,1704894478680,1032.85941046,0.00027,7]
[311072472,1704894632210,-154.87609912,0.00021746,4]
[311072474,1704894632220,-264.87381963,0.00021747,2]
[311072476,1704894632230,-154.87609912,0.00021747,2]
[311072478,1704894632239,-326.73090334,0.00021748,2]
[311072480,1704894632249,-266.19065175,0.00021749,2]
[311072482,1704894632260,-177.582832,0.00021786,2]
[311072484,1704894632268,-166.666666,0.00021918,2]
[311072486,1704894632280,-19828.39990193,0.00021941,2]
[311072488,1704894632289,-24900.0,0.00021942,2]
[311072490,1704894632298,-156.86767994,0.0002243,2]
[311072492,1704894632308,-166.666666,0.00022431,2]
[311072494,1704894632317,-4917.8600325,0.00022607,2]
[311072496,1704894632326,-1112.08388858,0.00022608,2]
[311072498,1704894632335,-166.666666,0.00022944,2]
[311072500,1704894632344,-166.666666,0.00023456,2]
[311072501,1704894632354,-166.666666,0.00023969,2]
[311072503,1704894632363,-614.01289661,0.00024,2]
[311072505,1704894632372,-166.666666,0.00024482,2]
[311072507,1704894632381,-299.005618,0.00024658,2]
[311072509,1704894632391,-1004.65983997,0.00025,2]
[311072511,1704894632399,-4711.08145103,0.00025,2]
[311072513,1704894632409,-12007.83,0.00025076,3]
[311072515,1704894632419,-7012.44,0.0002508,3]
[311072517,1704894632428,-3000.0,0.00025085,2]
[311072519,1704894632438,-677.45880314,0.00025086,2]
[311072521,1704894632447,-10014.12238485,0.0002512,2]
[311072523,1704894632456,-827.03386005,0.0002512,2]
[311072525,1704894632465,-3931.75997852,0.0002512,2]
[311072527,1704894632475,-234.97406424,0.0002512,2]
[311072529,1704894632484,-2093.08732709,0.0002512,2]
[311072531,1704894632493,-312.19187259,0.00025121,2]
[311072588,1704894638381,-156.86767994,0.00022,2]
[311072589,1704894638390,-17526.68970536,0.00025121,2]
[311072590,1704894638400,-2126.09470477,0.00026,2]
[311072591,1704894638410,-525.91402641,0.00026,2]
[311072592,1704894638420,-166.49187593,0.00026547,2]
[311072593,1704894638429,-211.29574429,0.00026618,2]
[311072594,1704894638439,-3496.83624002,0.00027,2]
[311072595,1704894638448,-200.0,0.00027,2]
[311072596,1704894638458,-2079.63666476,0.00027,2]
[311072597,1704894638467,-154.87609912,0.00027,2]
[311072598,1704894638476,-154.87609912,0.00027,2]
[311072599,1704894638485,-300.0,0.00027,2]
[311072600,1704894638494,-763.40324942,0.00027,2]
[311072601,1704894638503,-205.70237097,0.00027,2]
[311072602,1704894638512,-1407.40444826,0.00027,2]
[311072603,1704894638521,-194.08103188,0.00027,2]
[311072604,1704894638531,-489.0749698,0.00027121,2]
[311072605,1704894638540,-10006.52,0.00027287,3]
[311072606,1704894638550,-154.87609912,0.00027295,2]
[311072607,1704894638560,-1590.85272317,0.00027296,2]
[311072608,1704894638569,-38363.65059237,0.00027297,2]
[311072609,1704894638578,-212.72902684,0.00027297,2]
[311072610,1704894638588,-437.3876237,0.00027395,2]
[311072611,1704894638597,-222.27499817,0.00027395,2]
[311072612,1704894638607,-500.0,0.00027395,2]
[311072614,1704894638616,-190.76144155,0.00027396,2]
[311072616,1704894638625,-347.2162539,0.00027396,2]
[311072618,1704894638635,-307.49234173,0.00027396,2]
[311072620,1704894638644,-162.51375347,0.00027396,2]
[311072622,1704894638653,-500.0,0.00027396,2]
[311072624,1704894638662,-500.0,0.00027396,2]
[311072625,1704894638671,-500.0,0.00027396,2]
[311072627,1704894638681,-411.70191708,0.00027396,2]
[311072629,1704894638689,-628.35924515,0.00027396,2]
[311072631,1704894638698,-500.0,0.00027396,2]
[311072646,1704894638827,-347.99118806,0.00027396,2]
[311072648,1704894638838,-500.0,0.00027396,2]
[311072650,1704894638848,-500.0,0.00027396,2]
[311072652,1704894638861,-281.49359752,0.00027396,2]
[311072654,1704894638870,-500.0,0.00027396,2]
[311072656,1704894638879,-500.0,0.00027396,2]
[311072658,1704894638888,-500.0,0.00027396,2]
[311072660,1704894638897,-500.0,0.00027396,2]
[311072662,1704894638906,-500.0,0.00027396,2]
[311072664,1704894638915,-500.0,0.00027396,2]
[311072666,1704894638925,-500.0,0.00027396,2]
[311072668,1704894638934,-196.88588059,0.00027397,2]
[311072670,1704894638943,-1388.14853706,0.00027397,2]
[311072672,1704894638952,-154.8915759,0.00027397,2]
[311072674,1704894638962,-154.8915759,0.00027397,2]
[311072676,1704894638971,-459.72566429,0.00027397,2]
[311072678,1704894638980,-500.0,0.00027397,2]
[311072679,1704894638989,-500.0,0.00027397,2]
[311072681,1704894638998,-500.0,0.00027397,2]
[311072682,1704894639008,-347.48740305,0.00027397,2]
[311072684,1704894639018,-500.0,0.00027397,2]
[311072686,1704894639027,-500.0,0.00027397,2]
[311072688,1704894639036,-343.54922404,0.00027397,2]
[311072689,1704894639045,-500.0,0.00027397,2]
[311072691,1704894639054,-500.0,0.00027397,2]
[311072693,1704894639064,-500.0,0.00027397,2]
[311072694,1704894639073,-500.0,0.00027397,2]
[311072695,1704894639082,-502.72683891,0.00027397,2]
[311072696,1704894639091,-500.0,0.00027397,2]
[311072697,1704894639100,-500.0,0.00027397,2]
[311072698,1704894639110,-500.0,0.00027397,2]
[311072699,1704894639119,-500.0,0.00027397,2]
[311072700,1704894639129,-500.0,0.00027397,2]
[311072701,1704894639139,-500.0,0.00027397,2]
[311072702,1704894639148,-500.0,0.00027397,2]
[311072703,1704894639157,-500.0,0.00027397,2]
[311072704,1704894639166,-500.0,0.00027397,2]
[311072705,1704894639175,-521.63197799,0.00027397,2]
[311072706,1704894639184,-500.0,0.00027397,2]
[311072707,1704894639194,-500.0,0.00027397,2]
[311072708,1704894639203,-500.0,0.00027397,2]
[311072709,1704894639213,-500.0,0.00027397,2]
[311072710,1704894639222,-500.0,0.00027397,2]
[311072711,1704894639232,-500.0,0.00027397,2]
[311072712,1704894639241,-189.40971969,0.00027397,2]
[311072713,1704894639251,-500.0,0.00027397,2]
[311072714,1704894639262,-500.0,0.00027397,2]
[311072715,1704894639271,-500.0,0.00027397,2]
[311072716,1704894639281,-1617.15361555,0.00027397,2]
[311072717,1704894639290,-500.0,0.00027397,2]
[311072718,1704894639299,-603.66307077,0.00027397,2]
[311072719,1704894639309,-500.0,0.00027397,2]
[311072720,1704894639318,-500.0,0.00027397,2]
[311072721,1704894639327,-154.8915759,0.00027397,2]
[311072722,1704894639336,-500.69801775,0.00027397,2]
[311072723,1704894639346,-500.0,0.00027397,2]
[311072724,1704894639355,-500.0,0.00027397,2]
[311072725,1704894639364,-500.0,0.00027397,2]
[311072726,1704894639374,-500.0,0.00027397,2]
[311072727,1704894639384,-500.0,0.00027397,2]
[311072728,1704894639393,-500.0,0.00027397,2]
[311072729,1704894639403,-500.0,0.00027397,2]
[311072730,1704894639412,-503.16998153,0.00027397,2]
[311072731,1704894639421,-602.33008702,0.00027397,2]
[311072732,1704894639431,-500.0,0.00027397,2]
[311072733,1704894639440,-500.0,0.00027397,2]
[311072734,1704894639449,-174.25971677,0.00027397,2]
[311072735,1704894639458,-500.0,0.00027397,2]
[311072736,1704894639468,-177.33217794,0.00027397,2]
[311072737,1704894639477,-500.0,0.00027397,2]
[311072738,1704894639487,-500.0,0.00027397,2]
[311072739,1704894639496,-500.0,0.00027397,2]
[311072740,1704894639507,-500.0,0.00027397,2]
[311072741,1704894639516,-500.0,0.00027397,2]
[311072742,1704894639525,-500.0,0.00027397,2]
[311072743,1704894639534,-511.96070925,0.00027397,2]
[311072744,1704894639543,-500.0,0.00027397,2]
[311072745,1704894639553,-563.96233462,0.00027397,2]
[311072746,1704894639563,-536.91540474,0.00027397,2]